{"text_format":"1","workbook":"xlsx","n_sheets":34,"sheets":["Indice","Portada ","Firma del Auditor externo","BG","ER","EVPN","EFE","Nota1","Nota 2","Nota 3","Nota 4","Nota 5","Nota 6","Nota 7","Nota 8","Nota 9","Nota 10","Nota 11","Nota 12","Nota 13","Nota 14","Nota 15","Nota 16.1","Nota 16.2","Nota 17","Nota 18","Nota 19","Nota 20","Nota 21","Nota 22","Nota 23","Nota 24","Nota 25","Nota 26"],"not_rendered":{"charts":0,"images":1,"macros":1,"external_links":0,"defined_names":2,"comments":0,"pivot_tables":0},"unopened":[],"bounds":{"document_bytes":16777216,"sheet_cells":100000,"rows_first":2000,"rows_last":500,"rows_between":2000,"halvings":0,"cell_chars":16384,"cell_head_chars":4096},"cells_cut":0,"cells_raw":0,"read":"whole","date_system":"1900"}

{"sheet":"Indice","index":0,"n_rows":52,"n_cols":4,"rows_kept":52,"cut":false,"hidden":false,"merged":[]}
[null,"Sociedad:","CEMENTOS CONCEPCIÓN S.A.E."]
[]
[]
[]
[]
["Fecha Presentación:","2020-12-31"]
[]
[]
[null,null,"INDICE","REF."]
[null,null,"Portada","Portada "]
[null,null,"Firma del Auditor externo","Firma del Auditor externo"]
[null,"Informacion General"]
[null,null,"Descripción de la naturaleza y del negocio de la Sociedad","Nota1"]
[null,null,"Resumen de las principales políticas contables","Nota 2"]
[null,"Balance General",null,"BG"]
[null,null,"Efectivo y equivalente de efectivo","Nota 3"]
[null,null,"Cuentas por cobrar comerciales","Nota 4"]
[null,null,"Otros créditos","Nota 5"]
[null,null,"Otros valores – Fideicomiso","Nota 6"]
[null,null,"Inventarios","Nota 7"]
[null,null,"Inversión en asociadas","Nota 8"]
[null,null,"Propiedades, planta y equipo/Bienes de uso, neto","Nota 9"]
[null,null,"Activos intangibles","Nota 10"]
[null,null,"Cuentas por pagar comerciales","Nota 11"]
[null,null,"Deudas financieras","Nota 12"]
[null,null,"Remuneraciones y cargas sociales a pagar"]
[null,null,"Impuestos a pagar"]
[null,null,"Provisiones","Nota 13"]
[null,null,"Otros pasivos corrientes","Nota 14"]
[null,null,"Capital integrado","Nota 19"]
[null,null,"Aporte p/ futura Integración","Nota 19"]
[null,null,"Reserva de revalúo","Nota 20"]
[null,null,"Reserva legal","Nota 21"]
[null,null,"Reservas facultatitvas","Nota 21"]
[null,null,"Resultados acumulados"]
[null,"Estado de Resultados ",null,"ER"]
[null,null,"Ventas"]
[null,null,"Costo de ventas"]
[null,null,"Gastos de ventas","Nota 16.1"]
[null,null,"Gastos administrativos","Nota 16.1"]
[null,null,"Otros ingresos y gastos operativos","Nota 16.2"]
[null,null,"Ingresos financieros - neto","Nota 17"]
[null,null,"Impuesto a la renta","Nota 18"]
[null,"Estado de Evolución del Patrimonio Neto",null,"EVPN"]
[null,"Estado de Flujos de Efectivo",null,"EFE"]
[null,"Otras Notas de los Estados Financieros"]
[null,null,"Bienes de uso con disponibilidad restringida","Nota 22"]
[null,null,"Restricción de la distribución de utilidades","Nota 23"]
[null,null,"Contingencias y compromisos","Nota 24"]
[null,null,"Situación de pandemia COVID-19","Nota 25"]
[null,null,"Hechos posteriores","Nota 26"]
[null,null,"Saldos con partes relacionadas","Nota 15"]

{"sheet":"Portada ","index":1,"n_rows":69,"n_cols":8,"rows_kept":69,"cut":false,"hidden":false,"merged":[[6,1,11,6],[12,1,15,6],[16,1,21,6]]}
[]
[]
[null,"1.              IDENTIFICACIÓN"]
[]
[null,"1.1          NOMBRE O RAZÓN SOCIAL: Cementos Concepción Sociedad Anónima Emisora (CECON S.A.E.)"]
[]
[null,"1.2          ANTECEDENTES DE CONSTITUCIÓN SOCIAL Y REFORMAS ESTATUTARIAS: es una compañía por acciones legalmente constituida en fecha 17 de agosto de 2000, con el nombre de CALERA RISSO SOCIEDAD ANÓNIMA COMERCIAL, INMOBILIARIA E INDUSTRIAL - (CARISA S.A.C.I.I.), por escritura pública Nº 109, pasada ante la notaria y escribana pública Eustaquia Benitez de Carrillo (titular del registro Nro. 96), e inscripta en la Dirección General de los Registros Públicos, Registro de Personas Jurídicas y Asociaciones según A.I. Nro. 1916 bajo el Nro. 630, folio 6351, Serie B en fecha 22/09/2000 y en el Registro Público de Comercio según A.I. Nro. 1916 bajo el Nro. 805, folio 5794 y Sgtes., Serie B en fecha 22/09/2000, con un capital inicial de Gs. 9.000.000.000.-"]
[]
[]
[]
[]
[]
[null,"Posteriormente se realiza, entre otros, una reducción de Capital Social a la suma de Gs. 3.000 millones, por rescate parcial de acciones, por escritura pública N° 80, pasada ante la escribana pública Gladys Delia Lichi Battilana (titular del registro Nro. 163), e inscripta en la Dirección General de los Registros Públicos, Registro de Personas Jurídicas y Asociaciones según Matrícula Jurídica Nro. 15.356, Serie Comercial, bajo el Nro. 01, folio Nro. 01, en fecha 24/09/2018 y en el Registro Público de Comercio según Matrícula Jurídica Nro. 15.593, Serie Comercial, bajo el Nro. 01, folio Nro. 01 y siguientes, en fecha 24/09/2018. "]
[]
[]
[]
[null,"Finalmente, a fin de posibilitar la emisión de títulos valores y negociar en la Bolsa de Valores se realiza la conversión de la sociedad de SACII a SAE (Sociedad Anónima Emisora), realizándose el cambio de la denominación de la sociedad, la que en adelante pasa a denominarse CEMENTOS CONCEPCIÓN SAE - (CECON SAE), se aumenta el capital social de Gs. 3.000 millones a Gs. 360.000 millones, y se realiza una reestructuración y modificación total del Estatuto Social vigente. Estos cambios fueron formalizados por escritura pública N° 19, pasada ante el notario y escribano público José María Livieres Guggiari (titular del registro Nro. 940), e inscripta en la Dirección General de los Registros Públicos, Registro de Personas Jurídicas y Asociaciones según Matrícula Jurídica Nro. 15.356, Serie Comercial, bajo el Nro. 02, folio Nro. 13, en fecha 15/02/2019 y en el Registro Público de Comercio según Matrícula Jurídica Nro. 15.593, Serie Comercial, bajo el Nro. 02, folio Nro. 14, en fecha 15/02/2019."]
[]
[]
[]
[]
[]
[]
[null,"1.3          RUC: 80022117-6"]
[]
[null,"1.4          ACTIVIDAD PRINCIPAL SEGÚN INSCRIPCIÓN EN EL RUC:  Fabricación de cemento, cal y yeso."]
[]
[null,"1.5          ACTIVIDAD SECUNDARIA SEGÚN INSCRIPCIÓN EN EL RUC:  Actividades inmobiliarias realizadas con bienes propios o arrendados."]
[]
[null,"1.6          DOMICILIO LEGAL: Avenida Primer Presidente N° 3299 esq. Calle 3."]
[]
[null,"1.7          TELÉFONO: (021) 282-009."]
[]
[null,"1.8          FAX:  N/A"]
[]
[null,"1.9          E-MAIL: info@cecon.com.py"]
[]
[null,"1.10      SITIO PÁGINA WEB: www.cecon.com.py"]
[]
[null,"2.              ADMINISTRACIÓN"]
[]
[null,"CARGO","NOMBRE Y APELLIDO"]
[null,"Representante (s) Legal (es)","José Mariano Ortiz Escauriza y Luis Alberto Lima Morra"]
[null,"Presidente","José Mariano Ortiz Escauriza"]
[null,"Vicepresidente","Luis Alberto Lima Morra"]
[null,"Director","Jorge Luis Méndez Cuevas"]
[null,"Director","Marco Antonio Laterra Uliambre"]
[null,"Síndico","Héctor Ortiz Insfrán"]
[null,"Plana Ejecutiva"]
[null,"- Gerente General","Jorge Luis Méndez Cuevas"]
[]
[null,"3.              CAPITAL Y PROPIEDAD"]
[]
[null,"Capital Social","Capital Emitido","Capital Suscripto","Capital Integrado","Valor nominal de las acciones"]
[null,360000000000,360000000000,360000000000,330000000000,1000000]
[]
[null,"COMPOSICIÓN ACCIONARIA: Accionistas que detentan el diez (10) por ciento o más de participación en el Capital."]
[]
[null,"N°","Accionista","Cantidad de Acciones","Clase","Voto","Monto","% de participación del capital integrado"]
[null,1,"HORACIO MANUEL CARTES JARA",198000,"ORDINARIA",198000,198000000000,0.6]
[null,2,"JIMÉNEZ GAONA Y LIMA EMPRESA DE CONSTRUCCIONES S.A.",82500,"ORDINARIA",82500,82500000000,0.25]
[null,3,"JOSÉ MARIANO ORTIZ ESCAURIZA",33000,"ORDINARIA",33000,33000000000,0.1]
[null,4,"JORGE LUIS MÉNDEZ CUEVAS",16500,"ORDINARIA",16500,16500000000,0.05]
[]
[null,"4.              AUDITOR EXTERNO INDEPENDIENTE"]
[]
[null,"4.1          AUDITOR EXTERNO INDEPENDIENTE DESIGNADO:  Ernst & Young Paraguay – Auditores y Asesores de Negocios"]
[]
[null,"4.2          NÚMERO DE INSCRIPCIÓN EN EL REGISTRO DE LA CNV:  028"]

{"sheet":"Firma del Auditor externo","index":2,"n_rows":10,"n_cols":3,"rows_kept":10,"cut":false,"hidden":false,"merged":[[9,2,10,9],[3,2,4,9],[6,2,6,9]]}
[]
[]
[]
[null,null,"INFORME DE AUDITORIA DE LOS ESTADOS FINANCIEROS POR EL EJERCICIO FINALIZADO EL 31 DE DICIEMBRE DEL 2020"]
[]
[]
[null,null,"Presentado en forma comparativa con el ejercicio anterior"]
[]
[]
[null,null,"La firma del Auditor Externo Independiente es a fines de identificación con Dictamen emitido en fecha 30 de abril del 2021"]

{"sheet":"BG","index":3,"n_rows":51,"n_cols":7,"rows_kept":51,"cut":false,"hidden":false,"merged":[[28,2,28,3],[30,2,30,3],[31,2,31,3],[32,2,32,3],[45,2,45,3],[6,0,6,6],[8,0,8,6],[55,5,55,6],[46,2,46,3],[24,2,24,3],[23,2,23,3],[20,2,20,3],[21,2,21,3],[22,2,22,3],[29,2,29,3],[7,0,7,6],[42,2,42,3],[13,2,13,3],[14,2,14,3],[15,2,15,3],[17,2,17,3],[61,5,61,6],[62,1,62,3],[11,1,11,3],[26,1,26,3],[40,1,40,3],[39,1,39,3],[47,1,47,3],[60,5,60,6],[25,1,25,3],[48,1,48,3],[33,2,33,3],[36,2,36,3],[41,2,41,3],[44,2,44,3],[43,2,43,3],[56,5,56,6]]}
[null,null,null,{"$f":"Indice!C1","v":"CEMENTOS CONCEPCIÓN S.A.E."},"Indice"]
[]
[]
[]
[]
[]
["BALANCE GENERAL AL 31 DE DICIEMBRE DE 2020"]
["Comparativo con el ejercicio anterior"]
["(Expresado en guaraníes – Nota 2.a)"]
[]
[null,null,null,null,"Nota",{"$f":"IFERROR(IF(Indice!B6=\"\",\"2XX2\",YEAR(Indice!B6)),\"2XX2\")","v":2020},{"$f":"IFERROR(YEAR(Indice!B6-366),\"2XX1\")","v":2019}]
[null,"ACTIVOS"]
[null,"Activos Corrientes"]
[null,null,"Efectivo y equivalente de efectivo",null,"Nota 3",{"$f":"'Nota 3'!C19","v":112055292108},{"$f":"'Nota 3'!D19","v":27199216207}]
[null,null,"Cuentas por cobrar comerciales",null,"Nota 4",{"$f":"'Nota 4'!C16","v":7358143706},{"$f":"'Nota 4'!D16","v":8299995964}]
[null,null,"Otros créditos",null,"Nota 5",{"$f":"'Nota 5'!B17","v":56201791993},{"$f":"'Nota 5'!C17","v":26395033080}]
[null,null,"Otros valores – Fideicomiso",null,"Nota 6",{"$f":"+'Nota 6'!B13","v":8501062400},{"$f":"+'Nota 6'!C13","v":0}]
[null,null,"Inventarios",null,"Nota 7",{"$f":"'Nota 7'!B14","v":26916680089},{"$f":"'Nota 7'!C14","v":1391832927}]
[null,null,"Total activos corrientes",null,null,{"$f":"SUM(F14:F18)","v":211032970296},{"$f":"SUM(G14:G18)","v":63286078178}]
[null,"Activos no Corrientes"]
[null,null,"Otros créditos ",null,"Nota 5",{"$f":"'Nota 5'!B27","v":6249713393},{"$f":"'Nota 5'!C27","v":4699945185}]
[null,null,"Inversión en asociadas",null,"Nota 8",{"$f":"'Nota 8'!B9","v":46750000},{"$f":"'Nota 8'!C9","v":0}]
[null,null,"Propiedades, planta y equipo/Bienes de uso, neto",null,"Nota 9",{"$f":"'Nota 9'!I23","v":807268520608},{"$f":"'Nota 9'!J23","v":440062336170}]
[null,null,"Activos intangibles",null,"Nota 10",{"$f":"'Nota 10'!B13","v":2993157145},{"$f":"'Nota 10'!C13","v":1855461139}]
[null,null,"Total activos no corrientes",null,null,{"$f":"SUM(F21:F24)","v":816558141146},{"$f":"SUM(G21:G24)","v":446617742494}]
[null,"Total Activos",null,null,null,{"$f":"+F19+F25","v":1027591111442},{"$f":"+G19+G25","v":509903820672}]
[null,"PASIVOS Y PATRIMONIO NETO"]
[null,"Pasivos corrientes",null,null,null,-1]
[null,null,"Cuentas por pagar comerciales",null,"Nota 11",{"$f":"'Nota 11'!D16","v":28038961949},{"$f":"'Nota 11'!E16","v":3593792732}]
[null,null,"Deudas financieras",null,"Nota 12",{"$f":"'Nota 12'!E30","v":831758738},{"$f":"'Nota 12'!K30","v":168139736063.31}]
[null,null,"Remuneraciones y cargas sociales a pagar",null,null,440480167,166708747]
[null,null,"Impuestos a pagar",null,null,0,230722158]
[null,null,"Provisiones",null,"Nota 13",{"$f":"'Nota 13'!B13","v":6978943153},{"$f":"'Nota 13'!C13","v":1023377383}]
[null,null,"Otros pasivos corrientes",null,"Nota 14",{"$f":"'Nota 14'!B12","v":42741432897},{"$f":"'Nota 14'!C12","v":832544219}]
[null,null,"Total Pasivos Corrientes",null,null,{"$f":"SUM(F29:F34)","v":79031576904},{"$f":"SUM(G29:G34)","v":173986881302.31}]
[null,"Pasivos no corrientes"]
[null,null,"Deudas financieras",null,"Nota 12",{"$f":"'Nota 12'!E58","v":623732800069},{"$f":"'Nota 12'!K58","v":0}]
[null,null,"Total pasivos no corrientes",null,null,{"$f":"SUM(F37:F37)","v":623732800069},{"$f":"SUM(G37:G37)","v":0}]
[]
[null,"Total Pasivos",null,null,null,{"$f":"+F35+F38","v":702764376973},{"$f":"+G35+G38","v":173986881302.31}]
[null,"Patrimonio Neto"]
[null,null,"Capital integrado",null,"Nota 19",{"$f":"+EVPN!C33","v":330000000000},{"$f":"+EVPN!C28","v":330000000000}]
[null,null,"Aporte p/ futura Integración",null,"Nota 19",{"$f":"+EVPN!F33","v":135829875},{"$f":"+EVPN!F28","v":135829875}]
[null,null,"Reserva de revalúo",null,"Nota 20",5421755260,5421755260]
[null,null,"Reserva legal",null,"Nota 21",40914841,2624662]
[null,null,"Reservas facultatitvas",null,"Nota 21",318439394,0]
[null,null,"Resultados acumulados",null,null,-11090204901,356729573]
[null,"Total Patrimonio Neto",null,null,null,{"$f":"+SUM(F42:F47)","v":324826734469},{"$f":"+SUM(G42:G47)","v":335916939370}]
[null,"Total Pasivos y Patrimonio Neto",null,null,null,{"$f":"+F40+F48","v":1027591111442},{"$f":"+G40+G48","v":509903820672.31}]
[]
[null,"Las notas que se acompañan forman parte integrante de los estados financieros"]

{"sheet":"ER","index":4,"n_rows":33,"n_cols":4,"rows_kept":33,"cut":false,"hidden":false,"merged":[[44,2,44,3],[6,0,6,3],[7,0,7,3],[8,0,8,3],[9,0,9,3],[38,2,38,3]]}
[{"$f":"Indice!C1","v":"CEMENTOS CONCEPCIÓN S.A.E."},"Indice",null,{"$f":"ER!A4","v":" "}]
[]
[]
[" "]
[]
[]
["ESTADO DE RESULTADOS POR EL EJERCICIO FINALIZADO EL 31 DE DICIEMBRE DE 2020"]
["Comparativo con el ejercicio anterior"]
[" (Expresado en guaraníes – Nota 2.a)"]
[]
[]
[null,"Nota",{"$f":"IFERROR(IF(Indice!B6=\"\",\"2XX2\",YEAR(Indice!B6)),\"2XX2\")","v":2020},{"$f":"IFERROR(YEAR(Indice!B6-366),\"2XX1\")","v":2019}]
["Ventas",null,75146229511,27147975957]
["Costo de ventas",null,-62925796515,-24838344611]
[]
["Utilidad bruta",null,{"$f":"C13+C14","v":12220432996},{"$f":"D13+D14","v":2309631346}]
[]
["Gastos de ventas","Nota 16.1",{"$f":"-'Nota 16.1'!B37","v":-507779155},{"$f":"-'Nota 16.1'!E37","v":-125101205}]
["Gastos administrativos ","Nota 16.1",{"$f":"-'Nota 16.1'!C37","v":-34633174500},{"$f":"-'Nota 16.1'!F37","v":-17335037393}]
["Otros ingresos  y gastos operativos","Nota 16.2",{"$f":"+'Nota 16.2'!B10","v":312930366},{"$f":"+'Nota 16.2'!C10","v":4490707}]
[]
["Resultado operativo",null,{"$f":"SUM(C16:C20)","v":-22607590293},{"$f":"SUM(D16:D20)","v":-15146016545}]
[]
["Ingresos financieros - neto","Nota 17",{"$f":"'Nota 17'!B13","v":10672504771},{"$f":"'Nota 17'!C13","v":16142542291}]
[]
["Resultado ordinario antes del impuesto a la renta",null,{"$f":"+SUM(C22:C24)","v":-11935085522},{"$f":"+SUM(D22:D24)","v":996525746}]
[]
["Impuesto a la renta","Nota 18",{"$f":"'Nota 18'!B17","v":844880621},{"$f":"'Nota 18'!C17","v":-230722158}]
[]
["Utilidad/(Pérdida) neta del ejercicio",null,{"$f":"C26+C28","v":-11090204901},{"$f":"D26+D28","v":765803588}]
[]
[]
[{"$f":"+BG!B51","v":"Las notas que se acompañan forman parte integrante de los estados financieros"}]

{"sheet":"EVPN","index":5,"n_rows":35,"n_cols":18,"rows_kept":35,"cut":false,"hidden":false,"merged":[[16,0,17,0],[15,2,15,5],[15,9,15,13],[16,2,17,2],[16,5,17,5],[16,7,17,7],[16,9,17,9],[16,11,17,11],[7,5,7,15],[8,5,8,15],[9,5,9,15],[16,15,17,15],[16,17,17,17],[16,13,17,13]]}
[{"$f":"Indice!C1","v":"CEMENTOS CONCEPCIÓN S.A.E."},null,null,null,null,null,null,"Indice"]
[]
[]
[]
[]
[]
[]
[null,null,null,null,null,"ESTADO DE EVOLUCIÓN DEL PATRIMONIO NETO POR EL EJERCIO FINALIZADO EL 31 DE DICIEMBRE DE 2020 "]
[null,null,null,null,null,"Comparativo con el ejercicio anterior"]
[null,null,null,null,null," (Expresado en guaraníes)"]
[]
[]
[]
[]
[]
[null,null,"Aporte de los propietarios",null,null,null,null,null,null,"Ganancias reservadas"]
[null,null,"Capital suscripto e integrado","Aporte para",null,"Aporte a Integrar",null,"Reserva de revalúo",null,"Reserva legal",null,"Reserva facultativa",null,"Resultados acumulados",null,"Resultado del Ejercicio",null,"Total"]
[null,null,null,"aumento de capital",null,null,null,null,null,null,null,null,null,"Total"]
[]
["Saldo al 31 de diciembre de 2018 ",null,41107000000,null,null,402816791,null,5374029285,null,0,null,0,null,-458942591,null,52493238,null,{"$f":"+SUM(C20:P20)","v":46477396723}]
["Transferencia",null,0,null,null,0,null,0,null,0,null,0,null,52493238,null,-52493238,null,0]
["Aporte para Futura Integración",null,0,null,null,288626013084,null,0,null,null,null,null,null,null,null,null,null,288626013084]
["Integración del capital social",null,288893000000,null,null,-288893000000,null,null,null,null,null,0,null,null,null,0,null,0]
["Reserva de revalúo",null,null,null,null,null,null,47725975,null,null,null,null,null,null,null,null,null,47725975]
["Reserva legal",null,null,null,null,null,null,null,null,2624662,null,null,null,{"$f":"-J25","v":-2624662},null,null,null,0]
["Resultado del ejercicio",null,null,null,null,0,null,0,null,0,null,0,null,0,null,765803588,null,765803588]
[]
["Saldo al 31 de diciembre de 2019",null,{"$f":"+SUM(C20:C26)","v":330000000000},{"$f":"SUM(D20:D26)","v":0},null,{"$f":"+SUM(F20:F26)","v":135829875},{"$f":"SUM(G20:G27)","v":0},{"$f":"+SUM(H20:H26)","v":5421755260},null,{"$f":"+SUM(J20:J26)","v":2624662},null,{"$f":"+SUM(L20:L26)","v":0},null,{"$f":"+SUM(N20:N26)","v":-409074015},null,{"$f":"+SUM(P20:P26)","v":765803588},null,{"$f":"+SUM(C28:P28)","v":335916939370}]
["Transferencia",null,null,null,null,null,null,null,null,null,null,null,null,765803588,null,-765803588,null,{"$f":"+SUM(C29:P29)","v":0}]
["Reserva Legal y Otros",null,null,null,null,null,null,null,null,38290179,null,318439394,null,-356729573,null,{"$f":"+P28+P29","v":0},null,{"$f":"+SUM(C30:P30)","v":0}]
["Resultado del ejercicio",null,null,null,null,null,null,null,null,null,null,null,null,null,null,-11090204901,null,{"$f":"+SUM(C31:P31)","v":-11090204901}]
[]
["Saldo al 31 de diciembre de 2020",null,{"$f":"+SUM(C28:C31)","v":330000000000},{"$f":"SUM(D28:D31)","v":0},null,{"$f":"+SUM(F28:F31)","v":135829875},null,{"$f":"+SUM(H28:H31)","v":5421755260},null,{"$f":"+SUM(J28:J31)","v":40914841},null,{"$f":"+SUM(L28:L31)","v":318439394},null,{"$f":"+SUM(N28:N31)","v":0},null,{"$f":"+SUM(P28:P31)","v":-11090204901},null,{"$f":"+SUM(R28:R31)","v":324826734469}]
[]
[{"$f":"+BG!B51","v":"Las notas que se acompañan forman parte integrante de los estados financieros"}]

{"sheet":"EFE","index":6,"n_rows":38,"n_cols":3,"rows_kept":38,"cut":false,"hidden":false,"merged":[[2,0,2,2],[4,0,4,2],[5,0,5,2],[6,0,6,2],[7,0,7,2]]}
[{"$f":"Indice!C1","v":"CEMENTOS CONCEPCIÓN S.A.E."}]
[]
[]
[]
["ESTADO DE FLUJOS DE EFECTIVO POR EL EJERCICIO FINALIZADO EL 31 DE DICIEMBRE DE 2020"]
["Comparativo con el ejercicio anterior"]
[" (Expresado en guaraníes)"]
[]
[]
[]
[null,{"$f":"IFERROR(IF(Indice!B6=\"\",\"2XX2\",YEAR(Indice!B6)),\"2XX2\")","v":2020},{"$f":"IFERROR(YEAR(Indice!B6-366),\"2XX1\")","v":2019}]
[]
["FLUJO DE EFECTIVO DE ACTIVIDADES OPERATIVAS"]
["Cobranzas efectuadas a clientes",75479388798,18848280873]
["Pagos efectuados a proveedores y empleados",-128774527873,-58538026517]
["Intereses pagados",null,-2915048476]
["Otros ingresos y (egresos) - neto",316991461,4522821]
["Pagos de impuesto a la renta",-278910374,-29925393]
["Flujo neto de efectivo de actividades operativas",{"$f":"SUM(B14:B18)","v":-53257057988},{"$f":"SUM(C14:C18)","v":-42630196692}]
[]
["FLUJO DE EFECTIVO DE ACTIVIDADES DE INVERSIÓN "]
["Adquisición de bienes de uso",-363683566339,{"$f":"-380407695802-16714348519-3216399876","v":-400338444197}]
["Aquisición de inversiones",-46750000,0]
["Flujo neto de efectivo de actividades de inversión",{"$f":"SUM(B22:B23)","v":-363730316339},{"$f":"SUM(C22:C23)","v":-400338444197}]
[]
["FLUJO DE EFECTIVO DE ACTIVIDADES DE FINANCIACIÓN"]
["Incremento de préstamos",290655705528,164376831690]
["Incremento por emisión de bonos",200000000000,0]
["Aportes de capital recibidos",0,288626013084]
["Flujo neto de efectivo de actividades de financiamiento",{"$f":"SUM(B27:B29)","v":490655705528},{"$f":"SUM(C27:C29)","v":453002844774}]
[]
["Incremento neto de efectivo",{"$f":"+B36-B34","v":84856075901},{"$f":"+C36-C34","v":26748552404}]
["Efecto estimado de la diferencia de cambio sobre el saldo de efectivo",11187744700,16714348519]
["Efectivo al principio del año",{"$f":"+C36","v":27199216207},450663803]
[]
["Efectivo al final del periodo",{"$f":"+BG!F14","v":112055292108},{"$f":"+BG!G14","v":27199216207}]
[null,{"$error":"#REF!"}]
[{"$f":"+BG!B51","v":"Las notas que se acompañan forman parte integrante de los estados financieros"}]

{"sheet":"Nota1","index":7,"n_rows":18,"n_cols":12,"rows_kept":18,"cut":false,"hidden":false,"merged":[[17,0,21,8],[10,0,15,8],[5,0,5,8]]}
[{"$f":"Indice!C1","v":"CEMENTOS CONCEPCIÓN S.A.E."},null,null,null,null,null,null,null,"BG",null,null,"Indice"]
[]
[null,null,null,null,"NOTAS A LOS ESTADOS FINANCIEROS AL 31 DE DICIEMBRE DE 2020"]
[null,null,null,null,"Comparativo con el ejercicio anterior"]
[null,null,null,null," (Expresado en guaraníes)"]
[" "]
[]
[]
["NOTA 1 – DESCRIPCIÓN DE LA NATURALEZA Y DEL NEGOCIO DE LA COMPAÑÍA"]
[]
["LA SOCIEDAD\n\nEs una compañía por acciones legalmente constituida en fecha 17 de agosto de 2000, con el nombre de CALERA RISSO SOCIEDAD ANÓNIMA COMERCIAL, INMOBILIARIA E INDUSTRIAL - (CARISA S.A.C.I.I.), por escritura pública Nº 109, pasada ante la notaria y escribana pública Eustaquia Benitez de Carrillo (titular del registro Nro. 96), e inscripta en la Dirección General de los Registros Públicos, Registro de Personas Jurídicas y Asociaciones según A.I. Nro. 1916 bajo el Nro. 630, folio 6351, Serie B en fecha 22/09/2000 y en el Registro Público de Comercio según A.I. Nro. 1916 bajo el Nro. 805, folio 5794 y siguientes, Serie B en fecha 22/09/2000, con un capital inicial de Gs. 9.000.000.000.-\n\nPosteriormente, se realiza, entre otros, una reducción de Capital Social a la suma de Gs. 3.000 millones, por rescate parcial de acciones, por escritura pública N° 80, pasada ante la escribana pública Gladys Delia Lichi Battilana (titular del registro Nro. 163), e inscripta en la Dirección General de los Registros Públicos, Registro de Personas Jurídicas y Asociaciones según Matrícula Jurídica Nro. 15.356, Serie Comercial, bajo el Nro. 01, folio Nro. 01, en fecha 24/09/2018 y en el Registro Público de Comercio según Matrícula Jurídica Nro. 15.593, Serie Comercial, bajo el Nro. 01, folio Nro. 01 y siguientes, en fecha 24/09/2018. \n\nFinalmente, a fin de posibilitar la emisión de títulos valores y negociar en la Bolsa de Valores se realiza la conversión de la sociedad de S.A.C.I.I. a S.A.E. (Sociedad Anónima Emisora), realizándose el cambio de la denominación de la sociedad, la que en adelante pasa a denominarse CEMENTOS CONCEPCIÓN S.A.E. - (CECON S.A.E.), se aumenta el capital social de Gs. 3.000 millones a Gs. 360.000 millones, y se realiza una reestructuración y modificación total del Estatuto Social vigente. Estos cambios fueron formalizados por escritura pública N° 19, pasada ante el notario y escribano público José María Livieres Guggiari (titular del registro Nro. 940), e inscripta en la Dirección General de los Registros Públicos, Registro de Personas Jurídicas y Asociaciones según Matrícula Jurídica Nro. 15.356, Serie Comercial, bajo el Nro. 02, folio Nro. 13, en fecha 15/02/2019 y en el Registro Público de Comercio según Matrícula Jurídica Nro. 15.593, Serie Comercial, bajo el Nro. 02, folio Nro. 14, en fecha 15/02/2019.\n\nLa Sociedad tiene por objeto principal dedicar¬se por cuenta propia o de terceros o asociada a terceros, a las siguientes actividades A LA EXPLOTACIÓN, INDUSTRIALIZACIÓN Y COMERCIALIZACIÓN DE PIEDRAS CALIZAS Y SUS DERIVADOS, TALES COMO, la producción de cal viva, hidratada, calcáreo para la corrección de la acidez de suelos agrícolas, para la fabricación de cementos, portland, puzolánicos, de escorias, y otros.\n\nLa duración de la sociedad se fijó en NOVENTA Y NUEVE años a contar desde la fecha de la inscripción, de la modificación estatutaria formalizada por escritura pública Nro. 19, ante los Registros Públicos correspondientes (15/02/2019).  El plazo podrá prorro¬garse o antici¬parse la disolución por resolu¬ción de una Asam¬blea General Extraordina¬ria de Accionistas.\n\nEl capital social autorizado es de Gs. 360.000.000.000. Al 30/06/2020 se encuentra integrado por la suma de Gs. 330.000.000.000, y está representado por 330.000 acciones nominativas, ordinarias de valor nominal Gs. 1.000.000 cada una. \n\nLa Dirección y Administración de la sociedad estarán a cargo de un Directorio compuesto por mínimo de 3 (tres) y un máximo de 7 (siete) Directores Titulares, accionistas o no, electos por la Asamblea General Ordinaria de Accionistas, la que determina en cada caso el número de miembros de que estará compuesto el Directorio dentro del mínimo y del máximo autorizado. La Asamblea determinará en cada caso, la elección o no de Directores Suplentes, así como el número de los mismos. Los Directores durarán un (1) año en el ejercicio de sus funciones, pudiendo ser indefinidamente reelectos."]
[]
[]
[]
[]
[]
[]
["La fiscalización de la sociedad es ejercida por un Síndico Titular y un Síndico Suplente designados anualmente por la Asamblea General Ordinaria de Accionistas, cuyas atribuciones son las que el Código Civil determina. Durarán (1) un año en sus funciones, pudiendo ser reelectos.\n\nLa sociedad fija su domicilio en la ciudad de Asunción, capital de la República del Paraguay, además cuenta con una sede (futura planta industrial) en la localidad de Morado, del distrito de San Lázaro del departamento de Concepción."]

{"sheet":"Nota 2","index":8,"n_rows":129,"n_cols":9,"rows_kept":129,"cut":false,"hidden":false,"merged":[[69,0,72,8],[74,0,75,8],[77,0,78,8],[80,0,81,8],[68,0,68,8],[30,0,30,8],[33,1,33,2],[33,4,33,8],[34,4,34,5],[34,7,34,8],[65,9,65,10],[66,9,66,10],[67,9,67,10],[41,0,41,8],[47,0,48,8],[52,0,52,4],[57,0,58,8],[66,0,67,8],[65,0,65,8],[62,0,62,8],[85,9,85,10],[86,9,86,10],[86,0,86,8],[84,0,84,8],[85,0,85,8],[84,9,84,10],[130,0,130,8],[96,0,96,8],[127,0,127,8],[128,0,129,8],[97,0,100,8],[102,0,104,8],[106,0,108,8],[122,0,122,8],[123,0,124,8],[25,0,26,8],[23,0,23,8],[24,0,24,8],[19,0,21,8],[120,9,120,10],[96,9,96,10],[87,0,87,8],[87,9,87,10],[117,9,117,10],[118,0,118,8],[117,0,117,8],[91,0,93,8],[110,0,111,8],[114,0,114,8],[115,0,115,8],[119,0,119,8],[28,0,29,8],[5,0,5,8],[56,0,56,8],[61,0,61,8],[60,0,60,8],[18,0,18,8],[42,0,42,8],[46,0,46,8],[51,0,51,8],[7,0,7,8],[44,0,44,8],[45,0,45,8],[8,0,11,8],[13,0,13,8],[14,0,14,8],[15,0,15,8]]}
[{"$f":"Indice!C1","v":"CEMENTOS CONCEPCIÓN S.A.E."},null,null,null,null,null,null,null,"BG"]
[]
[]
[]
[]
["NOTA 2 - RESUMEN DE LAS PRINCIPALES POLÍTICAS CONTABLES"]
[]
["a.   Bases de contabilización (Según NIF Bases de preparación de los Estados Financieros)"]
["Los estados financieros se han preparado siguiendo los criterios de las Normas de Información Financiera (NIF) emitidas por el Consejo de Contadores Públicos del Paraguay sobre la base de cos-tos históricos, excepto para el caso de activos y pasivos en moneda extranjera  y las propiedades, planta y equipo según se explica en la Notas j, y no reconocen en forma integral los efectos de la inflación sobre la situación patrimonial y financiera de la sociedad, sobre los resultados de sus operaciones y los flujos de efectivo, en atención a que la corrección monetaria no constituye una práctica contable obligatoria en el Paraguay. \n"]
[]
[]
[]
[]
[]
["b.   Concepto de Capital"]
["El capital de la Sociedad se mantiene a costo histórico."]
[]
[]
["c.   Uso de estimaciones contables"]
["La preparación de los presentes estados financieros requiere que la Gerencia de la sociedad realice estimaciones y evaluaciones que afectan el monto de los activos y pasivos registrados y contin-gentes, como así también los ingresos y egresos registrados en el ejercicio. Los resultados reales futuros pueden diferir de las estimaciones y evaluaciones realizadas a la fecha de preparación de los presentes estados financieros."]
[]
[]
[]
[]
["d.   Moneda extranjera"]
["Las operaciones en moneda extranjera se contabilizaron por su equivalente en moneda nacional en función de los tipos de cambio vigentes en el mercado a la fecha de concreción de las transac-ciones."]
[]
[]
["Los saldos de las cuentas del activo y pasivo monetarios denominados en moneda extranjera son convertidos al Guaraní a la cotización vigente a la fecha de cierre de los estados financieros. Las diferencias originadas por fluctuaciones en los tipos de cambio entre las fechas de concertación de las operaciones y su liquidación o valuación al cierre son reconocidas con cargo a los resultados del período."]
[]
[]
["El detalle de las cotizaciones de la moneda extranjera operada por la Entidad respecto al guaraní, al promedio y cierre de los estados financieros:"]
[]
[null,"Promedio",null,null,"Cierre"]
[null,2020,2019,null,"2020-12-01",null,null,"2019-12-01"]
[null,null,null,null,"Comprador","Vendedor",null,"Comprador","Vendedor"]
["Dólares estadounidenses",6988,6240,null,6892,6942,null,6442,6464]
["Euro",8302,6985,null,8466,8528,null,7217,7242]
["Real",1318,1583,null,1328,1337,null,1595,1600]
[]
[]
["e.   Efectivo y sus equivalentes"]
["Se considerarán dentro del concepto de efectivo los saldos en efectivo, disponibilidades en cuentas bancarias y toda inversión de muy alta liquidez, con vencimiento originalmente pactado no superior a tres meses. Ver Nota 3"]
[]
[]
["f.   Inversiones"]
["Las inversiones temporales se valúan de acuerdo a los siguientes criterios de valuación:\n Colocaciones financieras en moneda local: a su valor nominal más los intereses devengados al cierre del año/período. Ver Nota 3\n Colocaciones financieras en moneda extranjera: a su valor de cotización al cierre del año/período más intereses devengados a ese momento. Ver Nota 3\n\n"]
["Las inversiones no corrientes consideradas asociadas, y en donde la Compañía tiene influencia significativa han sido valuada a su valor patrimonial proporcional.  En aquellas inversiones no corrientes donde la Compañía no tiene influencia significativa o control, las mismas se encuentran valuadas a su costo. Ver Nota 8"]
[]
[]
[]
["g.   Créditos y Cuentas por Cobrar"]
["En moneda local: se reflejan a su valor nominal. Ver Nota 5"]
["En moneda extranjera: se valúan a los tipos de cambio vigentes a la fecha de cada balance general, como se menciona en la presente Nota inciso d. Ver Nota 5"]
[]
[]
["h. Previsión para cuentas de dudoso cobro/incobrables"]
["Las previsiones para cuentas de dudoso cobro se determinan al cierre de cada trimestre sobre la base del estudio de la cartera de créditos realizado con el objeto de determinar la porción no recuperable de las cuentas a cobrar. Ver Nota 5"]
[]
[]
[]
["i. Inventarios"]
["Las existencias se valúan al costo de adquisición o de producción. Para determinar el consumo se aplica el PPP (Precio Promedio Ponderado). Ver Nota 7"]
[]
[]
["j. Propiedades, planta y equipo"]
["Las propiedades, planta y equipo se exponen a su costo histórico ajustado por el coeficiente de revalúo emitido por la Autoridad Tributaria, menos la correspondiente depreciación acumulada. El incremento neto por la re-expresión se acredita a la respectiva reserva patrimonial, cuyo saldo puede ser utilizado únicamente para aumentar el capital."]
[]
[]
["En fecha 1 de enero de 2020 entro en vigencia la Ley N° 6.380/19 de Modernización y Simplificación del Sistema Tributario Nacional, la cual establece que el Poder Ejecutivo podrá establecer el revalúo obligatorio de los bienes del activo fijo, cuando la variación del Índices de Precio al Consumo determinado por el Banco Central del Paraguay alcance al menos el 20 %, acumulado desde el ejercicio en el cual se haya dispuesto el último revalúo. Para el cierre del ejercicio finalizado al 31 de diciembre de 2020, la variación acumulada del Índice de Precios al Consumidor no alcanzó el 20%, por tal motivo no fue efectuado el revalúo de los bienes del activo fijo."]
[]
[]
[]
[]
["El costo de las mejoras que extienden la vida útil de los bienes o aumentan su capacidad productiva es imputado a las cuentas respectivas del activo. Los gastos de mantenimiento son cargados a resultados."]
[]
[]
["La depreciación es calculada por el método de línea recta y año siguiente. Las depreciaciones de equipos adquiridos con el fin de llevar a cabo la construcción de la Planta Cementera son cargados al costo de la obra en curso y las depreciaciones de los demás bienes son cargadas a estado de resultados. Ver Nota 9"]
[]
[]
["El costo de las mejoras que extienden la vida útil de los bienes o aumentan su capacidad productiva es imputado a las cuentas respectivas del activo. Los gastos de mantenimiento son cargados a resultados."]
[]
[]
[]
["k. Intangibles"]
["Los intangibles se exponen a su costo incurrido menos las correspondientes amortizaciones acumuladas al cierre del año."]
["Las amortizaciones son calculadas por el método de línea recta. Ver Nota 11"]
["Este rubro incluye costos incurridos por la sociedad relacionados con ingresos futuros."]
[]
[]
["l. \tCostos por préstamos"]
["Los costos por préstamos que sean directamente atribuibles a la adquisición, construcción o producción de un activo que necesariamente lleve un período de tiempo sustancial para que esté disponible para su uso esperado o su venta, se capitalizan como parte del costo del activo. Todos los demás costos por préstamos se contabilizan como gastos en el período en el que se incurren. Los costos por préstamos incluyen los intereses y otros costos en los que incurre la entidad en relación con la celebración de los acuerdos de préstamo respectivos. Ver Nota 9"]
[]
[]
[]
[]
["m. Impuesto a la renta"]
["El impuesto a la renta que se carga a los resultados del año se basa en la utilidad contable antes de este concepto, ajustada por las partidas que la ley incluye o excluye para la determinación de la utilidad gravable a la que se aplica la tasa del impuesto y por el reconocimiento del cargo o el ingreso originados por la aplicación del impuesto diferido, si los hubiere. La tasa legal es del 10% para los períodos presentados. Hasta el 31 de diciembre de 2019 estuvo vigente el Impuesto a la Renta a las Actividades Comerciales e Industriales (IRACIS), y a partir del 1 de enero de 2020 entro en vigencia la Ley N° 6.380/2019 por el cual el Impuesto a la Renta se denomina actualmente Impuesto a la Renta Empresarial (IRE), manteniéndose la tasa del 10 % "]
[]
[]
[]
[]
["A partir de la entrada en vigencia, 1 de enero de 2020, de la Ley 6380/19, el IRACIS se cambia por el Impuesto a la Renta de las Empresas (IRE), siendo la tasa de dicho impuesto el 10%, y la distribución de dividendos y utilidades estará sujeta a una retención del 8% en concepto del Impuesto a los Dividendos y a las Utilidades (IDU) a personas físicas o jurídicas domiciliadas en el país, mientras que la tasa será del 15% cuando se tratase de no domiciliados."]
[]
[]
[]
["El impuesto diferido es calculado utilizando el método del estado de situación basado en el balance general, determinado a partir de las diferencias temporarias entre los importes contables de activos y pasivos y los importes utilizados para fines fiscales. El importe de impuesto diferido calculado está basado en la forma esperada de realización o liquidación de los importes contables de activos y pasivos, utilizando la tasa de impuesto aprobada a la fecha de los estados financieros."]
[]
[]
[]
["Un activo por impuesto diferido es reconocido solamente hasta el importe que es probable que futuras ganancias imponibles estarán disponibles, contra cuyos respectivos impuestos, el activo pueda ser utilizado."]
[]
[]
[]
["n. Indemnizaciones por despido"]
["Las indemnizaciones por despido son cargadas a resultados en el momento de su pago."]
[]
[]
["o. Reconocimiento de ingresos y egresos"]
["Los ingresos y egresos son reconocidos en función de su devengamiento."]
[]
[]
["p. Cambios en Políticas Contables"]
["A partir del 1 de enero del 2020, la Compañía inició la aplicación de las Normas de Información Financiera (NIF) emitidas por el Consejo de Contadores Públicos del Paraguay. Del análisis realizado por la Compañía, no se identificaron cambios sean significativos por la aplicación del nuevo marco contable."]
[]
[]
[]
["q. Información comparativa"]
["Los saldos al 31 de diciembre 2019 que se exponen a efectos comparativos surgen de los estados financieros auditados a dicha fecha e incluyen ciertas reclasificaciones no significativas, a los efectos de su presentación comparativa uniforme con los del presente ejercicio."]

{"sheet":"Nota 3","index":9,"n_rows":21,"n_cols":5,"rows_kept":21,"cut":false,"hidden":false,"merged":[[20,0,20,3]]}
[{"$f":"Indice!C1","v":"CEMENTOS CONCEPCIÓN S.A.E."},null,null,null,"BG"]
[]
[]
[]
[]
[]
["NOTA 3 - EFECTIVO Y EQUIVALENTE DE EFECTIVO"]
[]
["El saldo al 31 de diciembre del 2020 y 2019, es como sigue, en guaraníes:"]
[]
["Concepto",null,{"$f":"IFERROR(IF(Indice!B6=\"\",\"2XX2\",YEAR(Indice!B6)),\"2XX2\")","v":2020},{"$f":"IFERROR(YEAR(Indice!B6-366),\"2XX1\")","v":2019}]
[]
["Caja",null,92348118,71542529]
["Recaudaciones a depositar",null,53754000,7360000]
["Bancos Locales - Moneda local Guaraníes",null,8075141886,3038198867]
["Bancos Locales - Moneda extranjera Dólares",null,8103644570,24082114811]
["Fondos Mútuos - Moneda local Guaraníes",null,75113911346,0,"(*)"]
["Fondos Mútuos - Moneda extranjera Dólares",null,20616492188,0,"(*)"]
["Total",null,{"$f":"SUM($C$13:C18)","v":112055292108},{"$f":"SUM($D$13:D18)","v":27199216207}]
[]
["(*) Los saldos en cuentas de Fondos Mutuos colocados a través del BASA CAPITAL CASA DE BOLSA S.A. y REGIONAL CASA DE BOLSA S.A., son operaciones a la vista que generan intereses, pero por tener el carácter de a la vista y además funcionan como una caja de ahorro a la vista, son clasificados como disponibles."]

{"sheet":"Nota 4","index":10,"n_rows":39,"n_cols":6,"rows_kept":39,"cut":false,"hidden":false,"merged":[[6,2,6,3],[2,0,2,2]]}
[{"$f":"Indice!C1","v":"CEMENTOS CONCEPCIÓN S.A.E."},null,null,null,null,"BG"]
[]
["La cartera de cuentas a cobrar consta de dos segmentos bien diferentes, de los cuales uno proviene de las ventas a crédito realizadas a clientes y el otro por un préstamo otorgado a corto plazo y el detalle es como sigue:"]
[]
["NOTA  4 – CUENTAS POR COBRAR COMERCIALES"]
["Las cuentas a cobrar comerciales a corto plazo se integran como sigue:"]
[]
[null,null,{"$f":"IFERROR(IF(Indice!B6=\"\",\"2XX2\",YEAR(Indice!B6)),\"2XX2\")","v":2020},{"$f":"IFERROR(YEAR(Indice!B6-366),\"2XX1\")","v":2019}]
["Deudores por ventas locales","Moneda Local Guaraníes",{"$f":"5645558058-C10-C11-2","v":4296994029.9200001},{"$f":"866038000-D11","v":843750000}]
["Deudores por ventas locales","Moneda Extranjera Dólares",{"$f":"165898*6891.96","v":1143362380.0799999},0]
["Deudores - Entidad relacionada","Moneda Local Guaraníes",205201646,22288000]
["Cheques adelantados recibidos de clientes","Moneda Local Guaraníes",1664046256,7433957964]
["Cheques rechazados","Moneda Local Guaraníes",258096969,0]
["Subtotal",null,{"$f":"+SUM(C9:C13)","v":7567701281},{"$f":"+SUM(D9:D13)","v":8299995964}]
["Menos Previsiones",null,-209557575,0]
["Total",null,{"$f":"+SUM($C$14:C15)","v":7358143706},{"$f":"+D14+D15","v":8299995964}]
[]
[]
["Composición de la cartera de créditos por ventas",{"$f":"IFERROR(IF(Indice!B6=\"\",\"2XX2\",YEAR(Indice!B6)),\"2XX2\")","v":2020}]
["Situación","Monto","% Previsiones  sobre Cartera "]
["A  Total Cartera no Vencida",{"$f":"2700888000+1561585650-2","v":4262473648}]
["B. Total Cartera Vencida",{"$f":"+B25+B27","v":3305227633},"(*)"]
["Subtotal",{"$f":"+SUM(B21:B22)","v":7567701281}]
["Composición Cartera Vencida (*)"]
["Normal",2944670058]
["En Gestión de Cobro",0]
["En Gestión de Cobro Judicial",360557575,0.5]
["Total de la cartera de créditos vencida",{"$f":"+B25+B26+B27","v":3305227633}]
["Total de la cartera de créditos (A+B)",{"$f":"B21+B22","v":7567701281}]
[]
["(-) Total Previsiones",{"$f":"+C15","v":-209557575}]
[]
["TOTAL  NETO DE LA CARTERA DE CRÉDITOS",{"$f":"B29+B31","v":7358143706}]
[]
["Observaciones"]
["Criterios de Clasificación utilizados","De días","A días"]
["Normal",1,60]
["En Gestión de Cobro",61,120]
["En Gestión de Cobro Judicial",121,180]

{"sheet":"Nota 5","index":11,"n_rows":29,"n_cols":4,"rows_kept":29,"cut":false,"hidden":false,"merged":[[28,0,31,3]]}
[{"$f":"Indice!C1","v":"CEMENTOS CONCEPCIÓN S.A.E."},null,null,"BG"]
[]
[]
["NOTA 5 - OTROS CRÉDITOS"]
[]
["El saldo al 31 de diciembre del 2020 y 2019, es como sigue, en guaraníes:"]
[]
["Corrientes"]
[]
["Concepto",{"$f":"IFERROR(IF(Indice!B6=\"\",\"2XX2\",YEAR(Indice!B6)),\"2XX2\")","v":2020},{"$f":"IFERROR(YEAR(Indice!B6-366),\"2XX1\")","v":2019}]
["Anticipos a proveedores",{"$f":"3286762595+568608703+9226759135","v":13082130433},{"$f":"9075768685+2841213818","v":11916982503}]
["Gastos pagados por adelantado",66322327,3789715300]
["Anticipo Impuesto a la Renta",63150912,14962696]
["Retención Impuesto a la Renta",231771883,167444489]
["Retención Impuesto al Valor agregado",1915757713,427814890]
["IVA Crédito fiscal",{"$f":"40154414066+688244659","v":40842658725},{"$f":"9949736364+32883435+95493403","v":10078113202}]
["Total",{"$f":"SUM($B$11:B16)","v":56201791993},{"$f":"SUM($C$11:C16)","v":26395033080}]
[]
[]
["No corrientes"]
[]
["Concepto",{"$f":"IFERROR(IF(Indice!B6=\"\",\"2XX2\",YEAR(Indice!B6)),\"2XX2\")","v":2020},{"$f":"IFERROR(YEAR(Indice!B6-366),\"2XX1\")","v":2019}]
["Gastos de Desarrollo e Investigación",2616786248,1904823819]
["Gastos de Reorganización",2788046524,2795121366]
["Crédito por Impuesto a las Ganancias Diferido",4224403104,0]
["Previsión Crédito por Impuesto Diferido",-3379522483,0]
["Total",{"$f":"SUM(B23:B26)","v":6249713393},{"$f":"SUM(C23:C26)","v":4699945185}]
[]
["Nota:\tEl saldo de Anticipos a Proveedores (USD), al 31/12/2020, está conformado por anticipos a proveedores locales y del exterior por la adquisición de equipos y servicios de consultoría referidos a la construcción de la planta cementera, de conformidad a los contratos y acuerdos suscriptos entre las partes."]

{"sheet":"Nota 6","index":12,"n_rows":16,"n_cols":5,"rows_kept":16,"cut":false,"hidden":false,"merged":[[4,0,4,1],[15,0,15,4]]}
[{"$f":"Indice!C1","v":"CEMENTOS CONCEPCIÓN S.A.E."},null,null,null,"BG"]
[]
[]
["Nota 6 - OTROS VALORES – FIDEICOMISO "]
[]
[" El saldo al 31 de diciembre del 2020 y 2019, es como sigue, en guaraníes:"]
[]
[null,{"$f":"IFERROR(IF(Indice!B6=\"\",\"2XX2\",YEAR(Indice!B6)),\"2XX2\")","v":2020},{"$f":"+IFERROR(YEAR(Indice!B6-366),\"2XX1\")","v":2019}]
["Conceptos"]
["Fideicomiso Cta. Reserva - Moneda local Guaraníes",4277295761,0]
["Fideicomiso Cta. Reserva - Moneda extranjera Dólares",3828421821,0]
["Fideicomiso Ctas. Recaudadoras - Moneda local Guaraníes",395344818,0]
["Total",{"$f":"SUM($B9:B12)","v":8501062400},{"$f":"SUM($C9:C12)","v":0}]
[]
[]
["NOTA 6.1: Estos saldos están restringidos porqué son cuentas del Fideicomiso y conforman la garantía para el pago de la cuota del préstamo.\n\nNOTA 6.2: Estos saldos están restringidos ocasionalmente y son transferidos diariamente a cuentas disponibles."]

{"sheet":"Nota 7","index":13,"n_rows":14,"n_cols":4,"rows_kept":14,"cut":false,"hidden":false,"merged":[[6,1,6,2],[5,0,5,6],[3,0,3,2]]}
[{"$f":"Indice!C1","v":"CEMENTOS CONCEPCIÓN S.A.E."},null,null,"BG"]
[]
[]
["NOTA 7 – INVENTARIO"]
[]
["El saldo al 31 de diciembre 2020 y 2019, es como sigue, en guaraníes:"]
[]
["Concepto",{"$f":"IFERROR(IF(Indice!B6=\"\",\"2XX2\",YEAR(Indice!B6)),\"2XX2\")","v":2020},{"$f":"IFERROR(YEAR(Indice!B6-366),\"2XX1\")","v":2019}]
["Productos terminados",16514912613,1391832927]
["Productos en proceso",861069624,0]
["Materia prima",8624871950,0]
["Insumos",325494004,0]
["Otros Productos en Proceso",590331898,0]
["Total ",{"$f":"SUM(B9:B13)","v":26916680089},{"$f":"SUM(C9:C13)","v":1391832927}]

{"sheet":"Nota 8","index":14,"n_rows":17,"n_cols":5,"rows_kept":17,"cut":false,"hidden":false,"merged":[[3,0,3,5]]}
[{"$f":"Indice!C1","v":"CEMENTOS CONCEPCIÓN S.A.E."},null,null,"BG"]
[]
[]
["Nota 8 - INVERSIONES PERMANENTES"]
[]
["Las inversiones en sociedades se describen a continuación:"]
[]
["Periodo",{"$f":"IFERROR(IF(Indice!B6=\"\",\"2XX2\",YEAR(Indice!B6)),\"2XX2\")","v":2020},{"$f":"IFERROR(YEAR(Indice!B6-366),\"2XX1\")","v":2019}]
["Total Inversión",46750000,0]
[]
["a) Datos sobre la sociedad:"]
[null,null,null,{"$f":"IFERROR(IF(Indice!B6=\"\",\"2XX2\",YEAR(Indice!B6)),\"2XX2\")","v":2020}]
["Nombre de Sociedad","RUC","Cantidad de acciones","Total Patrimonio neto","Total del resultado"]
["TRES CERROS S.A.",null,null,46750000,0]
[]
["* Observación: La sociedad ha sido constituida en octubre del 2020, por lo que se encuentra en proceso de formación e inscripción ante la SET y la inversión contabilizada obedece a un aporte para futura capitalización"]
["                            La participación Accionaria será del 70%."]

{"sheet":"Nota 9","index":15,"n_rows":31,"n_cols":11,"rows_kept":31,"cut":false,"hidden":false,"merged":[[2,0,2,9],[5,8,5,9]]}
[{"$f":"Indice!C1","v":"CEMENTOS CONCEPCIÓN S.A.E."},null,null,null,null,null,null,null,"BG"]
[]
["NOTA 9 - PROPIEDADES, PLANTA Y EQUIPO - NETO"]
[]
[]
[null,"Costo histórico revaluado al inicio del año","Adquisiciones","Transferencia","Valor de origen final","Depreciación acumulada revaluada al inicio del año","Depreciación del año","Depreciación acumulada al final del ejercicio","Valor neto contable"]
[null,null,null,null,null,null,null,null,{"$f":"IFERROR(IF(Indice!B6=\"\",\"2XX2\",YEAR(Indice!B6)),\"2XX2\")","v":2020},{"$f":"IFERROR(YEAR(Indice!B6-366),\"2XX1\")","v":2019},"Vida útil"]
["Construcciones y Mejoras",42255487,29687231316,0,29729486803,1760645,1760645,3521290,29725965513,{"$f":"+B8","v":42255487},"40 años"]
["Embarcaciones",0,239582000,0,239582000,0,0,0,239582000,0,"10 años"]
["Equipos",1005754987,3637584392,0,4643339379,0,201150998,201150998,4442188381,1005754987,"5 años"]
["Equipos de Informática",965722271,648551701,0,1614273972,416354,241534657,241951011,1372322961,965722271,"4 años"]
["Equipos de Laboratorio",85095090,550507472,0,635602562,0,0,0,635602562,85095090,"5 años"]
["Herramientas",0,87211894,0,87211894,0,0,0,87211894,0,"5 años"]
["Instalaciones",403441730,2563150877,0,2966592607,0,80688346,80688346,2885904261,403441730,"5 años"]
["Maquinarias",20956351581,12656149631,0,33612501212,0,645925076,645925076,32966576136,20956351581,"10, 15 y 20 años"]
["Mejoras en Predio de Terceros",0,2009446296,0,2009446296,0,1004723148,1004723148,1004723148,0,"2 años"]
["Muebles y Equipos",439789345,4414742038,0,4854531383,14093295,87957868,102051163,4752480220,439789345,"10 y 5 añosos"]
["Terrenos",8253229528,2414740000,0,10667969528,0,0,0,10667969528,8253229528,"-"]
["Vehículos Terrestres",10894836423,6237974938,0,17132811361,0,673261966,673261966,16459549395,10894836423,"5 y 7 años"]
["Obras en curso",49618657797,230303588036,0,279922245833,0,0,0,279922245833,49618657797,"NOTA 9.1"]
["Maquinarias a Montar",0,74708996845,{"$f":"-D22","v":322145958344},396854955189,0,null,0,396854955189,0,"NOTA 9.1"]
["Equipos en Importación",347397201931,0,-322145958344,25251243587,0,0,0,25251243587,347397201931,"NOTA 9.1"]
["Totales",{"$f":"SUM(B8:B22)","v":440062336170},370159457436,0,810221793606,16270294,2937002704,2953272998,{"$f":"SUM($I$8:I22)","v":807268520608},{"$f":"SUM($J$8:J22)","v":440062336170}]
[null,null,null,null,null,null,null,null,{"$f":"+I23-BG!F23","v":0},{"$f":"+J23-BG!G23","v":0}]
["Al 31 de diciembre de 2020 y 2019 se han registrado depreciaciones de propiedad, planta y equipo por un total de Gs. 2.937.002.704 y Gs. 16.270.294 respectivamente. "]
[]
["Al 31 de diciembre de 2020, se han activado costos financieros dentro de obras en curso por un total de Gs. 34.129.718.832."]
[]
["NOTA 9.1: Los rubros de Obras en Curso, Maquinarias a Montar y Equipos en Importación son Activos en proceso de construcción y montaje"]
[]
["NOTA 9.2: Dentro de este rubro existen bienes restringidos. Ver Nota 22."]

{"sheet":"Nota 10","index":16,"n_rows":15,"n_cols":6,"rows_kept":15,"cut":false,"hidden":false,"merged":[[3,0,3,3],[4,1,4,2],[14,0,14,2]]}
[{"$f":"Indice!C1","v":"CEMENTOS CONCEPCIÓN S.A.E."},null,null,null,null,"BG"]
[]
[]
["NOTA 10 – ACTIVOS INTANGIBLES"]
[]
[]
[]
["Activos intangibles",{"$f":"IFERROR(IF(Indice!B6=\"\",\"2XX2\",YEAR(Indice!B6)),\"2XX2\")","v":2020},{"$f":"IFERROR(YEAR(Indice!B6-366),\"2XX1\")","v":2019}]
["Licencias",{"$f":"3405055205+55955000","v":3461010205},1858651363]
[]
["Menos amortización acumulada",-467853060,-3190224]
[]
["Total general",{"$f":"SUM(B9:B12)","v":2993157145},{"$f":"SUM(C9:C12)","v":1855461139}]
[]
["Al 31 de diciembre de 2020 y 2019 se han registrado amortizaciones de activos intangibles por un total de Gs. 464.662.836 y Gs. 3.190.224 respectivamente."]

{"sheet":"Nota 11","index":17,"n_rows":16,"n_cols":5,"rows_kept":16,"cut":false,"hidden":false,"merged":[]}
[{"$f":"Indice!C1","v":"CEMENTOS CONCEPCIÓN S.A.E."},null,"BG"]
[]
[]
["NOTA 11 – CUENTAS POR PAGAR COMERCIALES"]
[]
["El saldo al 31 de diciembre del 2020 y 2019, es como sigue, en guaraníes:"]
[]
["Corrientes","Simbología según ISO 4217","Indicación de Moneda",{"$f":"IFERROR(IF(Indice!B6=\"\",\"2XX2\",YEAR(Indice!B6)),\"2XX2\")","v":2020},{"$f":"IFERROR(YEAR(Indice!B6-366),\"2XX1\")","v":2019}]
["Proveedores - Entidades Relacionadas","PYG",{"$f":"IFERROR(VLOOKUP(B9,#REF!,2,0),\"\")","v":""},1646950043,51768290]
["Proveedores - Entidades Relacionadas","USD",{"$f":"IFERROR(VLOOKUP(B10,#REF!,2,0),\"\")","v":""},2031127,0]
["Otros proveedores del exterior","USD",{"$f":"IFERROR(VLOOKUP(B11,#REF!,2,0),\"\")","v":""},8052447122,243354790]
["Otros proveedores del exterior","EUR",{"$f":"IFERROR(VLOOKUP(B12,#REF!,2,0),\"\")","v":""},2848291880,0]
["Otros proveedores del exterior","BRL",{"$f":"IFERROR(VLOOKUP(B13,#REF!,2,0),\"\")","v":""},0,333232396]
["Proveedores locales","USD",{"$f":"IFERROR(VLOOKUP(B14,#REF!,2,0),\"\")","v":""},{"$f":"4227042034-397608","v":4226644426},2529013392]
["Proveedores locales","PYG",{"$f":"IFERROR(VLOOKUP(B15,#REF!,2,0),\"\")","v":""},11262597351,436423864]
["Total cuentas a pagar por comerciales",null,null,{"$f":"SUM(D9:D15)","v":28038961949},{"$f":"SUM(E9:E15)","v":3593792732}]

{"sheet":"Nota 12","index":18,"n_rows":63,"n_cols":12,"rows_kept":63,"cut":false,"hidden":false,"merged":[[60,0,60,4],[62,0,62,4]]}
[{"$f":"Indice!C1","v":"CEMENTOS CONCEPCIÓN S.A.E."},null,null,null,"BG",null,null,null,null,null,null,"BG"]
[]
[]
["NOTA 12 –  DEUDAS FINANCIERAS CORRIENTE"]
[]
[]
[]
[]
["Corrientes"]
[null,null,null,{"$f":"IFERROR(IF(Indice!B6=\"\",\"2XX2\",YEAR(Indice!B6)),\"2XX2\")","v":2020},null,null,null,null,null,{"$f":"IFERROR(YEAR(Indice!B6-366),\"2XX1\")","v":2019}]
["Préstamos de Entidades Locales","Vencimiento","Símbolo de Moneda","Moneda","Importe (miles de Gs)","Tipo de Garantía",null,"Vencimiento","Símbolo de Moneda","Moneda","Importe (miles de Gs)","Tipo de Garantía"]
["Sudameris Bank S.A.E.C.A.",null,null,{"$f":"IFERROR(VLOOKUP(C12,#REF!,2,0),\"\")","v":""},null,null,null,"2020-03-20","USD",{"$f":"IFERROR(VLOOKUP(I12,#REF!,2,0),\"\")","v":""},96959250000,"Sola firma"]
["Sudameris Bank S.A.E.C.A.",null,null,{"$f":"IFERROR(VLOOKUP(C13,#REF!,2,0),\"\")","v":""},null,null,null,"2020-05-15","USD",{"$f":"IFERROR(VLOOKUP(I13,#REF!,2,0),\"\")","v":""},64639500000,"Sola firma"]
["Banco BASA","2021-12-31","PYG",{"$f":"IFERROR(VLOOKUP(C14,#REF!,2,0),\"\")","v":""},12570133,"Línea tarjeta crédito",null,null,null,{"$f":"IFERROR(VLOOKUP(I14,#REF!,2,0),\"\")","v":""}]
["Deudas bursátiles",null,null,{"$f":"IFERROR(VLOOKUP(C15,#REF!,2,0),\"\")","v":""},null,null,null,null,null,{"$f":"IFERROR(VLOOKUP(I15,#REF!,2,0),\"\")","v":""}]
["(Incluir programas de forma individual)",null,null,{"$f":"IFERROR(VLOOKUP(C16,#REF!,2,0),\"\")","v":""},null,null,null,null,null,{"$f":"IFERROR(VLOOKUP(I16,#REF!,2,0),\"\")","v":""}]
["Préstamos de Entidades en el Exterior",null,null,{"$f":"IFERROR(VLOOKUP(C17,#REF!,2,0),\"\")","v":""},null,null,null,null,null,{"$f":"IFERROR(VLOOKUP(I17,#REF!,2,0),\"\")","v":""}]
["Nombre de la entidad financiera",null,null,{"$f":"IFERROR(VLOOKUP(C18,#REF!,2,0),\"\")","v":""},null,null,null,null,null,{"$f":"IFERROR(VLOOKUP(I18,#REF!,2,0),\"\")","v":""}]
["Nombre de la entidad financiera",null,null,{"$f":"IFERROR(VLOOKUP(C19,#REF!,2,0),\"\")","v":""},null,null,null,null,null,{"$f":"IFERROR(VLOOKUP(I19,#REF!,2,0),\"\")","v":""}]
["(incluir otras entidades)",null,null,{"$f":"IFERROR(VLOOKUP(C20,#REF!,2,0),\"\")","v":""},null,null,null,null,null,{"$f":"IFERROR(VLOOKUP(I20,#REF!,2,0),\"\")","v":""}]
["Deudas bursátiles",null,null,{"$f":"IFERROR(VLOOKUP(C21,#REF!,2,0),\"\")","v":""},null,null,null,null,null,{"$f":"IFERROR(VLOOKUP(I21,#REF!,2,0),\"\")","v":""}]
["(Incluir programas de forma individual)",null,null,{"$f":"IFERROR(VLOOKUP(C22,#REF!,2,0),\"\")","v":""},null,null,null,null,null,{"$f":"IFERROR(VLOOKUP(I22,#REF!,2,0),\"\")","v":""}]
["Intereses préstamos entidades financieras a pagar",null,null,{"$f":"IFERROR(VLOOKUP(C23,#REF!,2,0),\"\")","v":""},null,null,null,null,null,{"$f":"IFERROR(VLOOKUP(I23,#REF!,2,0),\"\")","v":""}]
["Intereses a pagar","2021-03-02","USD",{"$f":"IFERROR(VLOOKUP(C24,#REF!,2,0),\"\")","v":""},20156269369,null,null,null,null,{"$f":"IFERROR(VLOOKUP(I24,#REF!,2,0),\"\")","v":""},6540986063.3100004]
["Intereses a pagar","2021-03-02","PYG",{"$f":"IFERROR(VLOOKUP(C25,#REF!,2,0),\"\")","v":""},22358268496]
["(-) Intereses a Devengar",null,null,null,-42167952000]
["Intereses deudas bursátiles a pagar",null,null,{"$f":"IFERROR(VLOOKUP(C27,#REF!,2,0),\"\")","v":""}]
["Intereses a pagar","2021-03-29","PYG",{"$f":"IFERROR(VLOOKUP(C28,#REF!,2,0),\"\")","v":""},22222602739]
["(-) Intereses a Devengar",null,null,{"$f":"IFERROR(VLOOKUP(C29,#REF!,2,0),\"\")","v":""},-21749999999]
["Total",null,null,{"$f":"IFERROR(VLOOKUP(C30,#REF!,2,0),\"\")","v":""},{"$f":"SUM($E$12:E29)","v":831758738},null,null,null,null,null,{"$f":"SUM($K$12:K29)","v":168139736063.31}]
[]
[]
["NO CORRIENTES"]
[null,null,null,{"$f":"IFERROR(YEAR(Indice!B6),\"2XX2\")","v":2020},null,null,null,null,null,{"$f":"IFERROR(YEAR(Indice!B6-366),\"2XX1\")","v":2019}]
["Préstamos de Entidades Locales","Vencimiento","Símbolo de Moneda","Moneda","Importe (miles de Gs)","Tipo de garantía",null,"Vencimiento","Símbolo de Moneda","Moneda","Importe (miles de Gs)","Tipo de Garantía"]
["Sudameris Bank S.A.E.C.A.","2028-12-04","USD",{"$f":"IFERROR(VLOOKUP(C36,#REF!,2,0),\"\")","v":""},{"$f":"27000000*6941.65+69","v":187424550069},"Fideicomiso",null,null,null,{"$f":"IFERROR(VLOOKUP(I36,#REF!,2,0),\"\")","v":""}]
["Banco Familiar S.A.E.C.A.","2028-12-04","USD",{"$f":"IFERROR(VLOOKUP(C37,#REF!,2,0),\"\")","v":""},{"$f":"5000000*6941.65","v":34708250000},"Fideicomiso",null,null,null,{"$f":"IFERROR(VLOOKUP(I37,#REF!,2,0),\"\")","v":""}]
["Banco Familiar S.A.E.C.A.","2030-12-02","PYG",{"$f":"IFERROR(VLOOKUP(C38,#REF!,2,0),\"\")","v":""},50400000000,"Fideicomiso"]
["Banco Continental S.A.E.C.A.","2030-12-02","PYG",{"$f":"IFERROR(VLOOKUP(C39,#REF!,2,0),\"\")","v":""},38880000000,"Fideicomiso"]
["Visión Banco S.A.E.C.A.","2030-12-02","PYG",{"$f":"IFERROR(VLOOKUP(C40,#REF!,2,0),\"\")","v":""},18720000000,"Fideicomiso"]
["Banco Regional S.A.E.C.A.","2030-12-02","PYG",{"$f":"IFERROR(VLOOKUP(C41,#REF!,2,0),\"\")","v":""},79200000000,"Fideicomiso"]
["Banco Nacional de Fomento","2030-12-02","PYG",{"$f":"IFERROR(VLOOKUP(C42,#REF!,2,0),\"\")","v":""},14400000000,"Fideicomiso",null,null,null,{"$f":"IFERROR(VLOOKUP(I42,#REF!,2,0),\"\")","v":""}]
["Deudas bursátiles",null,null,{"$f":"IFERROR(VLOOKUP(C43,#REF!,2,0),\"\")","v":""},null,null,null,null,null,{"$f":"IFERROR(VLOOKUP(I43,#REF!,2,0),\"\")","v":""}]
["Programa Emisión Global 1","2030-03-18","PYG",{"$f":"IFERROR(VLOOKUP(C44,#REF!,2,0),\"\")","v":""},100000000000,"Sola firma"]
["Programa Emisión Global 2","2030-12-16","PYG",{"$f":"IFERROR(VLOOKUP(C45,#REF!,2,0),\"\")","v":""},100000000000,"Sola firma",null,null,null,{"$f":"IFERROR(VLOOKUP(I45,#REF!,2,0),\"\")","v":""}]
["Préstamos de Entidades en el Exterior",null,null,{"$f":"IFERROR(VLOOKUP(C46,#REF!,2,0),\"\")","v":""},null,null,null,null,null,{"$f":"IFERROR(VLOOKUP(I46,#REF!,2,0),\"\")","v":""}]
["Nombre de la entidad financiera",null,null,{"$f":"IFERROR(VLOOKUP(C47,#REF!,2,0),\"\")","v":""},null,null,null,null,null,{"$f":"IFERROR(VLOOKUP(I47,#REF!,2,0),\"\")","v":""}]
["Nombre de la entidad financiera",null,null,{"$f":"IFERROR(VLOOKUP(C48,#REF!,2,0),\"\")","v":""},null,null,null,null,null,{"$f":"IFERROR(VLOOKUP(I48,#REF!,2,0),\"\")","v":""}]
["(incluir otras entidades)",null,null,{"$f":"IFERROR(VLOOKUP(C49,#REF!,2,0),\"\")","v":""},null,null,null,null,null,{"$f":"IFERROR(VLOOKUP(I49,#REF!,2,0),\"\")","v":""}]
["Deudas bursátiles",null,null,{"$f":"IFERROR(VLOOKUP(C50,#REF!,2,0),\"\")","v":""},null,null,null,null,null,{"$f":"IFERROR(VLOOKUP(I50,#REF!,2,0),\"\")","v":""}]
["(Incluir programas de forma individual)",null,null,{"$f":"IFERROR(VLOOKUP(C51,#REF!,2,0),\"\")","v":""},null,null,null,null,null,{"$f":"IFERROR(VLOOKUP(I51,#REF!,2,0),\"\")","v":""}]
["Intereses préstamos entidades financieras a pagar",null,null,{"$f":"IFERROR(VLOOKUP(C52,#REF!,2,0),\"\")","v":""},null,null,null,null,null,{"$f":"IFERROR(VLOOKUP(I52,#REF!,2,0),\"\")","v":""}]
["Intereses a pagar",null,null,{"$f":"IFERROR(VLOOKUP(C53,#REF!,2,0),\"\")","v":""},214447218485,null,null,null,null,{"$f":"IFERROR(VLOOKUP(I53,#REF!,2,0),\"\")","v":""}]
["(-) Intereses a Devengar",null,null,null,-214447218485]
["Intereses deudas bursátiles a pagar",null,null,{"$f":"IFERROR(VLOOKUP(C55,#REF!,2,0),\"\")","v":""},null,null,null,null,null,{"$f":"IFERROR(VLOOKUP(I55,#REF!,2,0),\"\")","v":""}]
["Intereses a pagar",null,null,{"$f":"IFERROR(VLOOKUP(C56,#REF!,2,0),\"\")","v":""},186000000000,null,null,null,null,{"$f":"IFERROR(VLOOKUP(I56,#REF!,2,0),\"\")","v":""}]
["(-) Intereses a Devengar",null,null,{"$f":"IFERROR(VLOOKUP(C57,#REF!,2,0),\"\")","v":""},-186000000000]
["Total",null,null,{"$f":"IFERROR(VLOOKUP(C58,#REF!,2,0),\"\")","v":""},{"$f":"SUM($E$36:E57)","v":623732800069},null,null,null,null,{"$f":"IFERROR(VLOOKUP(I58,#REF!,2,0),\"\")","v":""},{"$f":"SUM($K$36:K57)","v":0}]
[null,null,null,null,null,null,null,null,null,{"$f":"IFERROR(VLOOKUP(I59,#REF!,2,0),\"\")","v":""}]
[]
["Las deudas financieras son todas a largo plazo, las que son en USD a un plazo de 8 años a una tasa del 9% y en Gs a un plazo de 10 años a una tasa del 11%. Estas operaciones están garantizadas por un FIDEICOMISO."]
[]
["En fecha 23/03/2020 la Comisión Nacional de Valores inscribió en sus registros el Certificado de Registro CNV N° 19_23032020 siendo la misma el Programa de Emisión Global por Gs. 300.000.000.000.- y siendo aprobada en fecha 30/03/2020 una emisión de Gs. 100.000.000.000.- a una tasa del 12% anual por 10 años, con pagos trimestrales de intereses. Posteriormente es aprobada una segunda emisión del mismo programa global en fecha 17/12/2020 de Gs. 100.000.000.000.- a una tasa del 9,75% por 10 años con pagos trimestrales de intereses."]

{"sheet":"Nota 13","index":19,"n_rows":13,"n_cols":4,"rows_kept":13,"cut":false,"hidden":false,"merged":[[3,0,3,3],[7,0,8,0]]}
[{"$f":"Indice!C1","v":"CEMENTOS CONCEPCIÓN S.A.E."},null,null,"BG"]
[]
[]
["NOTA 13 -  PROVISIONES"]
[]
["El saldo al 31 de diciembre del 2020 y 2019, es como sigue, en guaraníes:"]
[]
["Provisiones",{"$f":"IFERROR(IF(Indice!B6=\"\",\"2XX2\",YEAR(Indice!B6)),\"2XX2\")","v":2020},{"$f":"IFERROR(YEAR(Indice!B6-366),\"2XX1\")","v":2019}]
[]
["Honorarios Profesionales a Pagar",4514755,8000000]
["Gastos a Reponer FF",17917213,{"$f":"42593066+18216140","v":60809206}]
["Provisiones Varias",6956511185,954568177]
["Total",{"$f":"SUM($B$10:B12)","v":6978943153},{"$f":"SUM($C$10:C12)","v":1023377383}]

{"sheet":"Nota 14","index":20,"n_rows":12,"n_cols":4,"rows_kept":12,"cut":false,"hidden":false,"merged":[[3,0,3,1]]}
[{"$f":"Indice!C1","v":"CEMENTOS CONCEPCIÓN S.A.E."},null,null,"BG"]
[]
["NOTA 14 – OTROS PASIVOS CORRIENTES y NO CORRIENTES"]
[]
[]
["Corrientes",{"$f":"IFERROR(IF(Indice!B6=\"\",\"2XX2\",YEAR(Indice!B6)),\"2XX2\")","v":2020},{"$f":"IFERROR(YEAR(Indice!B6-366),\"2XX1\")","v":2019}]
["Retencion de IVA a pagar",57717823,113990498]
["Retencion Impuesto a la renta a Pagar",251209084,289537951]
["Anticipos de Clientes",95005491,428115770]
["Otros Pasivos",900133,900000]
["Otros Pasivos con Entidades relacionadas ",42336600366,0]
["Total ",{"$f":"SUM(B7:B11)","v":42741432897},{"$f":"SUM(C7:C11)","v":832544219}]

{"sheet":"Nota 15","index":21,"n_rows":28,"n_cols":3,"rows_kept":28,"cut":false,"hidden":false,"merged":[[7,0,7,6]]}
[{"$f":"Indice!C1","v":"CEMENTOS CONCEPCIÓN S.A.E."},null,"Indice"]
[]
[]
[]
["NOTA 15 - SALDOS CON PARTES RELACIONADAS"]
[]
[]
[]
[]
[null,{"$f":"IFERROR(IF(Indice!B6=\"\",\"2XX2\",YEAR(Indice!B6)),\"2XX2\")","v":2020},{"$f":"+IFERROR(YEAR(Indice!B6-366),\"2XX1\")","v":2019}]
["ACTIVO"]
["Cuentas a cobrar comerciales",205201646,22288000]
["Total activo",{"$f":"SUM(B12:B12)","v":205201646},{"$f":"SUM(C12:C12)","v":22288000}]
[]
[]
["PASIVO"]
["Cuentas por pagar Relacionadas",{"$f":"+B10","v":2020},{"$f":"+C10","v":2019}]
["Jiménez Gaona y Lima Construcciones S.A.",1643650043,43625134]
["Prana S.A.",3300000,0]
["Tabacalera del Este S.a.",2031127,0]
["Compañía Agrotabacalera del Paraguay S.A.",0,6000000]
["Distribuidora del Paraguay S.A.",0,2143156]
["Total Cuentas por pagar Relacionadas",{"$f":"+SUM(B18:B22)","v":1648981170},{"$f":"+SUM(C18:C22)","v":51768290}]
[]
["Préstamos a pagar Relacionadas",{"$f":"+B17","v":2020},{"$f":"+C17","v":2019}]
["Tabacalera del Este S.A.",28431048976,0]
["Veneto S.A.",13905551390,0]
["Total Préstamos a pagar Relacionadas",{"$f":"+SUM(B26:B27)","v":42336600366},{"$f":"+SUM(C26:C27)","v":0}]

{"sheet":"Nota 16.1","index":22,"n_rows":37,"n_cols":7,"rows_kept":37,"cut":false,"hidden":false,"merged":[[5,0,5,7],[10,0,11,0]]}
[{"$f":"Indice!C1","v":"CEMENTOS CONCEPCIÓN S.A.E."},null,null,null,null,null,"ER"]
[]
[]
[]
["NOTA 16.1 - GASTOS ADMINISTRATIVOS Y DE VENTAS"]
[]
[]
["El saldo de los “Gastos Administrativos” y “Gastos de Ventas” al 31 de diciembre del 2020 y 2019, es como sigue, en guaraníes:"]
[]
[]
[null,null,{"$f":"IFERROR(IF(Indice!B6=\"\",\"2XX2\",YEAR(Indice!B6)),\"2XX2\")","v":2020},null,null,{"$f":"+IFERROR(YEAR(Indice!B6-366),\"2XX1\")","v":2019}]
[null,"Gastos de Ventas","Gastos Administrativos","Total","Gastos de Ventas","Gastos Administrativos","Total"]
["Movilidad y viáticos",0,2538279039,{"$f":"+C13+B13","v":2538279039},0,0,{"$f":"+F13+E13","v":0}]
["Gastos de alquiler",0,3049590519,{"$f":"+C14+B14","v":3049590519},0,0,0]
["Computación y redes",0,489723647,{"$f":"+C15+B15","v":489723647},0,0,0]
["Gastos por servicios",412397489,1412159449,1824556938,125101205,0,125101205]
["Honorarios profesionales y asesoramiento",0,2227951323,2227951323,0,2995003927,2995003927]
["Investigación de mercado",0,0,0,0,0,0]
["Impuestos y tasas",0,233910661,233910661,0,252487337,252487337]
["Gastos de reparación y mantenimiento",0,2610116015,2610116015,0,0,0]
["Gastos del personal y capacitación",0,1616293039,1616293039,0,0,0]
["Seguros pagados",0,115054468,115054468,0,0,0]
["Otros gastos de operación",0,0,0,0,0,0]
["Remuneraciones de administradores, directores, síndicos y consejo de vigilancia",0,1724236970,1724236970,0,2605840100,{"$f":"+F24+E24","v":2605840100}]
["Sueldos y Jornales",0,8412671953,8412671953,0,3952377281,{"$f":"+F25+E25","v":3952377281}]
["Contribuciones Sociales",0,1257598084,1257598084,0,591890024,591890024]
["Regalías y Honorarios por servicios técnicos",0,0,0,0,0,0]
["Gastos de Publicidad y Propaganda",95381666,0,95381666,0,0,0]
["Intereses, multas y recargos impositivos",0,143875942,143875942,0,200000,200000]
["Intereses a bancos e instituciones financieras",0,0,0,0,3486886818,3486886818]
["Depreciación bienes de uso",0,1637969379,1637969379,0,16270295,16270295]
["Amortización activos intangibles",0,464662836,464662836,0,3190224,3190224]
["Previsiones",0,209557575,209557575,0,0,0]
["Gastos No Deducibles",0,3901802989,3901802989,0,1273687555,1273687555]
["Responsabilidad Social Empresarial - RSE",0,1510742308,1510742308,0,0,0]
["Otros Gastos",0,1076978304,1076978304,0,2157203832,2157203832]
["Total",{"$f":"+SUM($B$13:B36)","v":507779155},{"$f":"+SUM($C$13:C36)","v":34633174500},{"$f":"+SUM(D13:D36)","v":35140953655},{"$f":"+SUM(E13:E36)","v":125101205},{"$f":"+SUM(F13:F36)","v":17335037393},{"$f":"+SUM(G13:G36)","v":17460138598}]

{"sheet":"Nota 16.2","index":23,"n_rows":10,"n_cols":7,"rows_kept":10,"cut":false,"hidden":false,"merged":[[3,0,3,4]]}
[{"$f":"Indice!C1","v":"CEMENTOS CONCEPCIÓN S.A.E."},null,null,null,"ER"]
[]
[]
["Nota 16.2 - OTROS INGRESOS"]
[]
["El saldo de los “Otros Ingresos” al 31 de diciembre del 2020 y 2019, es como sigue, en guaraníes:"]
[]
["Otros ingresos",{"$f":"IFERROR(IF(Indice!B6=\"\",\"2XX2\",YEAR(Indice!B6)),\"2XX2\")","v":2020},{"$f":"+IFERROR(YEAR(Indice!B6-366),\"2XX1\")","v":2019},null,null,{"$f":"IFERROR(IF(Indice!B6=\"\",\"2XX2\",YEAR(Indice!B6)),\"2XX2\")","v":2020},{"$f":"+IFERROR(YEAR(Indice!B6-366),\"2XX1\")","v":2019}]
["Otros Ingresos",{"$f":"316720944-3790578","v":312930366},4490707]
["Total",{"$f":"SUM($B$9:B9)","v":312930366},{"$f":"SUM($C$9:C9)","v":4490707},null,null,{"$f":"SUM($F$9:F9)","v":0},{"$f":"SUM($G$9:G9)","v":0}]

{"sheet":"Nota 17","index":24,"n_rows":13,"n_cols":5,"rows_kept":13,"cut":false,"hidden":false,"merged":[]}
[{"$f":"Indice!C1","v":"CEMENTOS CONCEPCIÓN S.A.E."},null,null,null,"ER"]
[]
[]
[]
["NOTA 17 - INGRESOS Y GASTOS FINANCIEROS NETOS"]
[]
["El saldo al 31 de diciembre del 2020 y 2019, es como sigue, en guaraníes:"]
[]
["Ingresos Financieros netos",{"$f":"IFERROR(IF(Indice!B6=\"\",\"2XX2\",YEAR(Indice!B6)),\"2XX2\")","v":2020},{"$f":"+IFERROR(YEAR(Indice!B6-366),\"2XX1\")","v":2019}]
[" Diferencia de Cambio neto",11188142308,16714348519]
["Gastos Bancarios",-515908054,-571838342]
["Intereses cobrados - Caja Ahorro",270517,32114]
["Total ingresos financieros",{"$f":"SUM($B10:B12)","v":10672504771},{"$f":"SUM($C10:C12)","v":16142542291}]

{"sheet":"Nota 18","index":25,"n_rows":17,"n_cols":5,"rows_kept":17,"cut":false,"hidden":false,"merged":[[5,1,5,2]]}
[{"$f":"Indice!C1","v":"CEMENTOS CONCEPCIÓN S.A.E."},null,null,null,"ER"]
[]
[]
["Nota 18 - IMPUESTO A LA RENTA Y DIFERIDO"]
["El detalle del activo por impuesto diferido y corriente es el siguiente: "]
[]
["Activo por impuesto diferido",2020,2019]
[]
["Quebrantos impositivos acumulados (neto)",844880621,0]
["Total",844880621,0]
[]
["El cargo a resultado de la cuenta del impuesto diferido y corriente es el siguiente:"]
[]
[null,{"$f":"IFERROR(IF(Indice!B6=\"\",\"2XX2\",YEAR(Indice!B6)),\"2XX2\")","v":2020},{"$f":"+IFERROR(YEAR(Indice!B6-366),\"2XX1\")","v":2019}]
["Impuesto corriente",0,-230722158]
["Impuesto diferido",844880621,0]
["Total",{"$f":"SUM($B15:B16)","v":844880621},{"$f":"SUM($C15:C16)","v":-230722158}]

{"sheet":"Nota 19","index":26,"n_rows":17,"n_cols":4,"rows_kept":17,"cut":false,"hidden":false,"merged":[[2,0,2,4]]}
[{"$f":"Indice!C1","v":"CEMENTOS CONCEPCIÓN S.A.E."},null,null,"BG"]
[]
["NOTA 19 - CAPITAL SOCIAL"]
[]
["Integrado"]
["El capital integrado al 31 de diciembre de 2020 asciende a Gs. 330.000.000.000 y está representado por 330.000 acciones nominativas, ordinarias de valor nominal Gs. 1.000.000 cada una."]
[]
["Aportes para Futura Integración de Acciones"]
["Durante el ejercicio 2019 la sociedad ha recibido aportes para futura integración de acciones por Gs. 288.626.013.084, que sumado al saldo inicial de Gs. 402.816.791 totalizó la suma de Gs. 289.028.829.875. De dicho saldo fue capitalizada la suma de Gs. 288.893.000.0000, quedando para futura integración de acciones un total de Gs. 135.829.875.-"]
[]
["RESERVA DE REVALUO"]
["El saldo de este rubro corresponde a la revaluación anual obligatoria de los bienes de uso, que fue realizada tal como lo exige la disposición legal y reglamentaria impositiva vigentes. A partir del ejercicio 2020 esta ya no fue hecha adecuándose a las modificaciones legales y también a las NIF Normas de Información Financiera."]
["El incremento patrimonial producido por el revalúo de los bienes de uso podrá ser capitalizado, no pudiendo ser distribuido como dividendo, utilidad o beneficio."]
[]
["RESERVA LEGAL Y OTRAS RESERVAS"]
["NOTA 21.1 RESERVA LEGAL: Al cierre del 31 de diciembre de 2019, la Empresa ha constituido la suma de Gs. 2.624.662 en concepto de Reserva Legal, que representa el 5% sobre el resultado utilidad del ejercicio cerrado al 31.12.2018, que fue de Gs. 52.493.238. Además, al cierre del 30 de junio de 2020, la Empresa ha constituido la suma de Gs. 38.290.179 en concepto de Reserva Legal, que representa el 5% sobre el resultado utilidad del ejercicio cerrado al 31.12.2019, que fue de Gs. 765.803.588. En total se ha constituido Reserva Legal por Gs. 40.914.841.-"]
["NOTA 21.2 RESERVA FACULTATIVA: Al cierre del 30 de junio de 2020, la Empresa ha constituido la suma de Gs. 318.439.394 en concepto de Reserva Facultativa, que corresponde a las utilidades netas luego de la Reserva Legal."]

{"sheet":"Nota 20","index":27,"n_rows":6,"n_cols":4,"rows_kept":6,"cut":false,"hidden":false,"merged":[[2,0,2,4]]}
[{"$f":"Indice!C1","v":"CEMENTOS CONCEPCIÓN S.A.E."},null,null,"BG"]
[]
["NOTA 20 - RESERVA DE REVALUO"]
[]
["El saldo de este rubro corresponde a la revaluación anual obligatoria de los bienes de uso, que fue realizada tal como lo exige la disposición legal y reglamentaria impositiva vigentes. A partir del ejercicio 2020 esta ya no fue hecha adecuándose a las modificaciones legales y también a las NIF Normas de Información Financiera."]
["El incremento patrimonial producido por el revalúo de los bienes de uso podrá ser capitalizado, no pudiendo ser distribuido como dividendo, utilidad o beneficio."]

{"sheet":"Nota 21","index":28,"n_rows":7,"n_cols":4,"rows_kept":7,"cut":false,"hidden":false,"merged":[[3,0,3,4]]}
[]
[{"$f":"Indice!C1","v":"CEMENTOS CONCEPCIÓN S.A.E."},null,null,"BG"]
[]
["NOTA 21 - RESERVA LEGAL Y OTRAS RESERVAS"]
[]
["NOTA 21.1 RESERVA LEGAL: Al cierre del 31 de diciembre de 2019, la Empresa ha constituido la suma de Gs. 2.624.662 en concepto de Reserva Legal, que representa el 5% sobre el resultado utilidad del ejercicio cerrado al 31.12.2018, que fue de Gs. 52.493.238. Además, al cierre del 30 de junio de 2020, la Empresa ha constituido la suma de Gs. 38.290.179 en concepto de Reserva Legal, que representa el 5% sobre el resultado utilidad del ejercicio cerrado al 31.12.2019, que fue de Gs. 765.803.588. En total se ha constituido Reserva Legal por Gs. 40.914.841.-"]
["NOTA 21.2 RESERVA FACULTATIVA: Al cierre del 30 de junio de 2020, la Empresa ha constituido la suma de Gs. 318.439.394 en concepto de Reserva Facultativa, que corresponde a las utilidades netas luego de la Reserva Legal."]

{"sheet":"Nota 22","index":29,"n_rows":15,"n_cols":5,"rows_kept":15,"cut":false,"hidden":false,"merged":[[3,0,3,4]]}
[{"$f":"Indice!C1","v":"CEMENTOS CONCEPCIÓN S.A.E."},null,null,null,"Indice"]
[]
[]
["NOTA 22 - BIENES DE USO CON DISPONIBILIDAD RESTRINGIDA"]
[]
[]
["Tipo de Activo","Datos  del activo gravado","Tipo de garantía","Importe (indicar moneda)","A favor de"]
["Vehículo Terrestre","HYUNDAI HD72 5,5 TONELADAS CHASIS CON CABINA , CHASIS N° KMFGA17PPLC344048, MOTOR N° D4DDKJ681888, COLOR BLANCO","Prenda",170537890,"AUTOMOTOR S.A."]
["Vehículo Terrestre","HYUNDAI HD72 5,5 TONELADAS CHASIS CON CABINA , CHASIS N° KMFGA17PPLC344035, MOTOR N° D4DDKJ681790, COLOR BLANCO","Prenda",171262603,"AUTOMOTOR S.A."]
["Vehículo Terrestre","MARCA KIA, MODELO K2700 (PU) CHASIS: KNCSHY71CL7410278, AÑO 2020, COLO BLANCO ","Prenda",135343347,"GARDEN AUTOMOTOR S.A."]
["Vehículo Terrestre","MARCA KIA, MODELO K2700 (PU) CHASIS: KNCSHX71AL7410178, AÑO 2020, COLO BLANCO ","Prenda",116132550,"GARDEN AUTOMOTOR S.A."]
["Vehículo Terrestre","CAMION SINOTRUK HOWO 336 2020 TUMBA 16M3 5Y5 MEC 6*4 CUBO  LZZ5ELNB3KN504129","Prenda",484006500,"CATHAY S.A."]
["Vehículo Terrestre","CAMION SINOTRUK HOWO 336 2020 TUMBA 16M3 5Y5 MEC 6*4 CUBO  LZZ5ELNB1KN504128","Prenda",484006500,"CATHAY S.A."]
[]
["Estos bienes se encuentran como garantía por la compra de los mismos."]

{"sheet":"Nota 23","index":30,"n_rows":6,"n_cols":4,"rows_kept":6,"cut":false,"hidden":false,"merged":[[3,0,3,6],[5,0,5,6]]}
[{"$f":"Indice!C1","v":"CEMENTOS CONCEPCIÓN S.A.E."},null,null,"Índice"]
[]
[]
["NOTA 23 - RESTRICCION DE LA DISTRIBUCION DE UTILIDADES"]
[]
["RESTRICCION DE LA DISTRIBUCION DE UTILIDADES\n\na)\tDe acuerdo con la legislación vigente y los estatutos sociales, las sociedades por acciones y las de responsabilidad limitada, deben constituir una reserva legal no menor del 5% de las utilidades netas del ejercicio, hasta alcanzar el 20% del capital suscripto.\n\nb)\tEl incremento patrimonial producido por el revalúo de los bienes de uso podrá ser capitalizado, no pudiendo ser distribuido como dividendo, utilidad o beneficio.\n\nc)\tHasta el 31 de diciembre de 2019, de acuerdo con la Ley Nº 125/91, modificada por la Ley 2421/04 que establece el régimen tributario, las utilidades obtenidas y remesadas a beneficiarios radicados en el exterior se hallan sujetas a una retención del 15% en concepto de impuesto a la renta gravada con una tasa adicional de impuesto a la renta del 5% para la entidad.\n\nd)\tCon la entrada en vigencia de la Ley 6380/19 a partir del 1° de enero del 2020, las utilidades generadas no distribuidas al cierre del ejercicio 2019 estarán sujetas a una retención del 8% en concepto del Utilidades IDU en el momento de la remesa o acreditamiento a personas físicas o jurídicas domiciliadas en el país, mientras que la tasa será del 15% cuando se tratase de no domiciliados. Excepcionalmente durante el primer año de vigencia de la Ley las ganancias acumuladas generadas en ejercicios anteriores y que no fueron capitalizadas ni distribuidas."]

{"sheet":"Nota 24","index":31,"n_rows":6,"n_cols":5,"rows_kept":6,"cut":false,"hidden":false,"merged":[[9,0,9,7],[5,0,6,7]]}
[{"$f":"Indice!C1","v":"CEMENTOS CONCEPCIÓN S.A.E."},null,null,null,"Indice"]
[]
[]
["NOTA 24 - CONTINGENCIAS Y COMPROMISOS "]
[]
["Al 31 de diciembre de 2020 no existen situaciones contingentes, ni reclamos que pudieran resultar compromisos para la Sociedad, adicionales a las que se presentan en los Estados Financieros."]

{"sheet":"Nota 25","index":32,"n_rows":6,"n_cols":4,"rows_kept":6,"cut":false,"hidden":false,"merged":[[3,0,3,6],[5,0,5,6]]}
[{"$f":"Indice!C1","v":"CEMENTOS CONCEPCIÓN S.A.E."},null,null,"Índice"]
[]
[]
["NOTA 25: SITUACIÓN DE PANDEMIA COVID-19"]
[]
["A mediados de marzo del 2020, la Organización Mundial de la Salud declaró al brote de coronavirus COVID-19 como una pandemia. La situación de emergencia sobre la salud pública se expandió prácticamente en todo el mundo y los distintos países han tomado diversas medidas para hacerle frente. Esta situación y las medidas adoptadas han afectado significativamente la actividad económica internacional con impactos diversos en los distintos países y sectores de negocio. La Dirección de la Compañía estima que esta situación generará un impacto adverso sobre las operaciones de la Compañía, pero las incertidumbres en relación con los efectos, extensión y duración de esta cuestión no permiten una estimación razonable de ese impacto a la fecha de emisión de los presentes estados financieros, lo que dependerá de la gravedad de la emergencia sanitaria y del éxito de las medidas tomadas y que se tomen en el futuro."]

{"sheet":"Nota 26","index":33,"n_rows":11,"n_cols":5,"rows_kept":11,"cut":false,"hidden":false,"merged":[[10,0,11,8]]}
[{"$f":"Indice!C1","v":"CEMENTOS CONCEPCIÓN S.A.E."},null,null,null,"Indice"]
[]
[]
[]
["NOTA 26 - HECHOS POSTERIORES"]
[]
["A la fecha de emisión de estos Estados Financieros , han ocurrido los siguientes eventos:"]
[]
["a) En fecha 12/03/2021 se ha emitido la serie 3 del Programa de emisión global por Gs. 100.000.000.000 con una tasa del 9,25% anual a un plazo de 10 años, con vencimiento trimestral de intereses y pago de Capital al final del período."]
[]
["b) En fecha 31/03/2021 se han emitido las facturas 001-002-0000081 por valor de Gs. 134.449.046.401 y 001-002-0000082 por valor de Gs. 21.859.223.764 para traspaso de bienes del Activo Fijo como cesión de derecho al Patrimonio Autónomo del Fideicomiso de Administración y Garantía Cecon1."]